[Event "94th Paris-ch  2019"]
[Site "Paris"]
[Date "2019.07.07"]
[Round "1.19"]
[White "Lutard, Theo"]
[Black "Dixit, Nikhil"]
[Result "0-1"]
[ECO "B15"]
[WhiteElo "2222"]
[BlackElo "2318"]
[Annotator "NA"]
[PlyCount "96"]
[EventDate "2019.07.07"]
[EventType "swiss"]
[EventCountry "FRA"]
[SourceTitle "playchess.com"]
[Source "ChessBase"]
[SourceQuality "1"]
[TimeControl "5400+30"]

1. e4 {[%emt 0:00:00]} g6 {[%emt 0:00:00]} 2. d4 {[%emt 0:00:00]} Bg7 {[%emt 0:01:07]} 3. Nc3 {[%emt 0:00:08]} c6 {[%emt 0:00:03]} 4. f4 {[%emt 0:00:40]} d5 {[%emt 0:00:07]} 5. e5 {[%emt 0:00:10]} Nh6 {[%emt 0:00:37]} 6. Nf3 {[%emt 0:00:50]} f6 {[%emt 0:00:18]} 7. Bd3 {[%emt 0:02:32]} Bg4 {[%emt 0:03:45]} 8. h3 {[%emt 0:00:32]} Bxf3 {[%emt 0:00:08]} 9. Qxf3 {[%emt 0:00:05]} O-O {[%emt 0:00:27]} 10. h4 {[%emt 0:03:28]} fxe5 {[%emt 0:00:32]} 11. dxe5 {[%emt 0:00:17]} Nd7 {[%emt 0:00:54]} 12. Qg3 {[%emt 0:00:32]} Nc5 {[%emt 0:04:37]} 13. h5 {[%emt 0:01:18]} Nxd3+ {[%emt 0:00:34]} 14. cxd3 {[%emt 0:00:37]} Qe8 {[%emt 0:05:26]} 15. hxg6 {[%emt 0:01:28]} Qxg6 {[%emt 0:00:35]} 16. Ne2 {[%emt 0:01:17]} c5 {[%emt 0:18:10]} 17. Bd2 {[%emt 0:00:47]} c4 {[%emt 0:14:59]} 18. Qxg6 {[%emt 0:06:28]} hxg6 {[%emt 0:00:22]} 19. d4 {[%emt 0:01:25]} e6 {[%emt 0:13:21]} 20. O-O-O {[%emt 0:03:56]} Kf7 {[%emt 0:05:02]} 21. Rdf1 {[%emt 0:16:21]} Rh8 {[%emt 0:00:28]} 22. Rh4 {[%emt 0:04:36]} Nf5 {[%emt 0:04:30]} 23. Rxh8 {[%emt 0:02:26]} Rxh8 {[%emt 0:00:06]} 24. g4 {[%emt 0:03:28]} Ne7 {[%emt 0:00:34]} 25. Rf3 {[%emt 0:23:25]} Rh2 {[%emt 0:04:31]} 26. Kd1 {[%emt 0:04:46]} Nc6 {[%emt 0:03:04]} 27. Rg3 {[%emt 0:05:14]} Rh1+ {[%emt 0:01:31]} 28. Kc2 {[%emt 0:00:43]} Bf8 {[%emt 0:02:54]} 29. Rg2 {[%emt 0:03:51]} Bb4 {[%emt 0:02:08]} 30. Bc3 {[%emt 0:05:23]} Rf1 {[%emt 0:08:33]} 31. Ng1 {[%emt 0:08:13]} b5 {[%emt 0:00:00]} 32. Nh3 {[%emt 0:00:31]} Be7 {[%emt 0:00:00]} 33. a3 {[%emt 0:00:31]} a5 {[%emt 0:00:03]} 34. b4 {[%emt 0:00:28]} cxb3+ {[%emt 0:00:38]} 35. Kxb3 {[%emt 0:00:28]} b4 {[%emt 0:00:24]} 36. axb4 {[%emt 0:00:16]} axb4 {[%emt 0:00:09]} 37. Ng5+ {[%emt 0:00:46]} Bxg5 {[%emt 0:00:15]} 38. Bxb4 {[%emt 0:00:33]} Nxb4 {[%emt 0:00:33]} 39. fxg5 {[%emt 0:00:22]} Nc6 {[%emt 0:00:20]} 40. Rh2 {[%emt 0:00:29]} Kg7 {[%emt 0:01:12]} 41. Ra2 {[%emt 0:00:18]} Rf3+ {[%emt 0:00:16]} 42. Ka4 {[%emt 0:00:17]} Nxd4 {[%emt 0:00:21]} 43. Kb4 {[%emt 0:00:06]} Nc6+ {[%emt 0:01:00]} 44. Kc5 {[%emt 0:00:09]} Nxe5 {[%emt 0:00:06]} 45. Kd6 {[%emt 0:00:11]} Nf7+ {[%emt 0:00:30]} 46. Kxe6 {[%emt 0:00:20]} d4 {[%emt 0:00:26]} 47. Ra7 {[%emt 0:00:50]} d3 {[%emt 0:00:24]} 48. Rd7 {[%emt 0:00:09]} Re3+ {[%emt 0:00:06]} 0-1

[Event "94th Paris-ch  2019"]
[Site "Paris"]
[Date "2019.07.07"]
[Round "1.20"]
[White "Sanchez, Louis"]
[Black "Girel, Joseph"]
[Result "1-0"]
[ECO "E08"]
[WhiteElo "2316"]
[BlackElo "2215"]
[Annotator "NA"]
[PlyCount "89"]
[EventDate "2019.07.07"]
[EventType "swiss"]
[EventCountry "FRA"]
[SourceTitle "playchess.com"]
[Source "ChessBase"]
[SourceQuality "1"]
[TimeControl "5400+30"]

1. Nf3 {[%emt 0:00:00]} Nf6 {[%emt 0:00:04]} 2. g3 {[%emt 0:00:00]} e6 {[%emt 0:01:08]} 3. Bg2 {[%emt 0:00:13]} d5 {[%emt 0:01:02]} 4. O-O {[%emt 0:00:30]} Be7 {[%emt 0:01:39]} 5. d4 {[%emt 0:01:49]} O-O {[%emt 0:00:12]} 6. c4 {[%emt 0:00:31]} c6 {[%emt 0:00:56]} 7. Qc2 {[%emt 0:00:27]} b6 {[%emt 0:00:14]} 8. Rd1 {[%emt 0:00:54]} Nbd7 {[%emt 0:02:12]} 9. b3 {[%emt 0:00:34]} Bb7 {[%emt 0:00:46]} 10. Nc3 {[%emt 0:00:32]} Rc8 {[%emt 0:03:05]} 11. e4 {[%emt 0:00:33]} dxe4 {[%emt 0:02:28]} 12. Nxe4 {[%emt 0:01:27]} Nxe4 {[%emt 0:00:23]} 13. Qxe4 {[%emt 0:00:16]} Nf6 {[%emt 0:00:54]} 14. Qe2 {[%emt 0:03:59]} Qc7 {[%emt 0:04:06]} 15. Bf4 {[%emt 0:02:57]} Bd6 {[%emt 0:00:39]} 16. Be5 {[%emt 0:00:50]} Nd7 {[%emt 0:05:40]} 17. Bxd6 {[%emt 0:01:46]} Qxd6 {[%emt 0:00:16]} 18. c5 {[%emt 0:00:43]} Qc7 {[%emt 0:03:26]} 19. Rac1 {[%emt 0:02:08]} Nf6 {[%emt 0:03:05]} 20. Ne5 {[%emt 0:02:48]} Nd5 {[%emt 0:02:15]} 21. Be4 {[%emt 0:02:15]} Qe7 {[%emt 0:05:50]} 22. Qc2 {[%emt 0:05:58]} g6 {[%emt 0:02:02]} 23. h4 {[%emt 0:03:21]} f6 {[%emt 0:03:06]} 24. Nc4 {[%emt 0:10:15]} bxc5 {[%emt 0:02:49]} 25. dxc5 {[%emt 0:00:40]} Qxc5 {[%emt 0:06:29]} 26. Bxg6 {[%emt 0:01:20]} Qe7 {[%emt 0:04:00]} 27. Be4 {[%emt 0:00:52]} c5 {[%emt 0:02:08]} 28. Qe2 {[%emt 0:01:41]} Rfd8 {[%emt 0:07:57]} 29. Re1 {[%emt 0:01:29]} Qg7 {[%emt 0:06:41]} 30. Kh2 {[%emt 0:03:37]} Kh8 {[%emt 0:03:07]} 31. Bf3 {[%emt 0:01:57]} e5 {[%emt 0:02:27]} 32. Red1 {[%emt 0:05:23]} Qh6 {[%emt 0:11:50]} 33. Qd2 {[%emt 0:07:02]} Qf8 {[%emt 0:01:32]} 34. Qa5 {[%emt 0:03:51]} Qe7 {[%emt 0:01:13]} 35. Be4 {[%emt 0:04:29]} a6 {[%emt 0:04:49]} 36. Rd2 {[%emt 0:02:24]} f5 {[%emt 0:06:39]} 37. Bxf5 {[%emt 0:01:33]} Rc6 {[%emt 0:00:00]} 38. Nxe5 {[%emt 0:02:34]} Rf6 {[%emt 0:00:38]} 39. Re1 {[%emt 0:09:02]} Qf8 {[%emt 0:00:45]} 40. g4 {[%emt 0:00:01]} Qd6 {[%emt 0:00:55]} 41. f4 {[%emt 0:02:06]} Rdf8 {[%emt 0:00:23]} 42. Kg3 {[%emt 0:06:52]} Rg8 {[%emt 0:00:38]} 43. Qc3 {[%emt 0:03:08]} Qf8 {[%emt 0:00:29]} 44. Rxd5 {[%emt 0:01:02]} Bxd5 {[%emt 0:00:04]} 45. Nd7 {[%emt 0:00:11]} 1-0

[Event "94th Paris-ch  2019"]
[Site "Paris"]
[Date "2019.07.07"]
[Round "2.1"]
[White "Moussard, Jules"]
[Black "Sanchez, Louis"]
[Result "1-0"]
[ECO "C42"]
[WhiteElo "2576"]
[BlackElo "2316"]
[Annotator "ChessBase"]
[PlyCount "45"]
[EventDate "2019.07.07"]
[EventType "swiss"]
[EventCountry "FRA"]
[SourceTitle "playchess.com"]
[Source "ChessBase"]
[SourceQuality "1"]
[TimeControl "5400+30"]

1. e4 {[%emt 0:00:00]} e5 {[%emt 0:00:00]} 2. Nf3 {[%emt 0:00:07]} Nf6 {[%emt 0:00:00]} 3. Nxe5 {[%emt 0:00:14]} d6 {[%emt 0:00:00]} 4. Nf3 {[%emt 0:00:18]} Nxe4 {[%emt 0:00:05]} 5. d3 {[%emt 0:00:07]} Nf6 {[%emt 0:00:31]} 6. d4 {[%emt 0:00:05]} g6 {[%emt 0:03:29]} 7. Bd3 {[%emt 0:17:35]} Bg7 {[%emt 0:01:16]} 8. O-O {[%emt 0:00:46]} O-O {[%emt 0:00:07]} 9. h3 {[%emt 0:00:22]} c5 {[%emt 0:01:30]} 10. Bf4 {[%emt 0:10:00]} Nc6 {[%emt 0:06:56]} 11. dxc5 {[%emt 0:12:27]} dxc5 {[%emt 0:02:38]} 12. c3 {[%emt 0:00:30]} Qd5 {[%emt 0:13:22]} 13. Na3 {[%emt 0:07:19]} Na5 {[%emt 0:44:30]} 14. Re1 {[%emt 0:09:41]} Bf5 {[%emt 0:06:56]} 15. Bf1 {[%emt 0:00:38]} Rfe8 {[%emt 0:02:06]} 16. Qa4 {[%emt 0:03:54]} b6 {[%emt 0:04:40]} 17. Rad1 {[%emt 0:06:49]} Rxe1 {[%emt 0:02:04]} 18. Rxd5 {[%emt 0:01:27]} Rxf1+ {[%emt 0:00:51]} 19. Kxf1 {[%emt 0:00:05]} Nxd5 {[%emt 0:00:06]} 20. Be5 {[%emt 0:01:41]} f6 {[%emt 0:03:06]} 21. Bg3 {[%emt 0:00:26]} Rd8 {[%emt 0:01:13]} 22. Kg1 {[%emt 0:00:23]} Bd7 {[%emt 0:00:25]} 23. Qd1 {[%emt 0:00:10]} 1-0

[Event "94th Paris-ch  2019"]
[Site "Paris"]
[Date "2019.07.07"]
[Round "2.3"]
[White "Bergez, Luc"]
[Black "Abergel, Thal"]
[Result "0-1"]
[ECO "B51"]
[WhiteElo "2308"]
[BlackElo "2450"]
[Annotator "ChessBase"]
[PlyCount "114"]
[EventDate "2019.07.07"]
[EventType "swiss"]
[EventCountry "FRA"]
[SourceTitle "playchess.com"]
[Source "ChessBase"]
[SourceQuality "1"]
[TimeControl "5400+30"]

1. e4 c5 2. Nf3 d6 3. Bb5+ Nc6 4. O-O Bd7 5. Re1 Nf6 6. c3 a6 7. Bf1 Bg4 8. h3 Bxf3 9. Qxf3 g6 10. d3 Bg7 11. Bg5 h6 12. Bh4 Nh7 13. Nd2 b5 14. a4 b4 15. Rec1 Ng5 16. Qd1 Ne6 17. Nc4 O-O 18. Ne3 Rb8 19. Ra2 Qd7 20. a5 Nc7 21. Nd5 Qe6 22. c4 b3 23. Nxc7 Qc8 24. Raa1 Qxc7 25. Qd2 Nd4 26. Be2 e6 27. Rf1 f5 28. f4 Qb7 29. Bf3 Rfe8 30. Bf2 Qb4 31. Qxb4 Rxb4 32. Be1 Rbb8 33. Bc3 fxe4 34. dxe4 Nc2 35. Bxg7 Kxg7 36. Ra4 e5 37. f5 Nd4 38. fxg6 Kxg6 39. Raa1 h5 40. Rac1 Rf8 41. Rc3 Kg5 42. g3 h4 43. Kg2 Rf6 44. gxh4+ Kxh4 45. Bg4 Rf4 46. Rxf4 exf4 47. Kf2 Kg5 48. Rc1 Kf6 49. Rg1 Rb4 50. Be2 Nxe2 51. Kxe2 Rxc4 52. Kd3 Rd4+ 53. Kc3 Rxe4 54. Kxb3 Ke5 55. h4 f3 56. h5 Rh4 57. Rg5+ Ke4 0-1

[Event "94th Paris-ch  2019"]
[Site "Paris"]
[Date "2019.07.07"]
[Round "2.4"]
[White "Guilleux, Fabien"]
[Black "Le Quang, Kim"]
[Result "1-0"]
[ECO "A89"]
[WhiteElo "2442"]
[BlackElo "2243"]
[Annotator "NA"]
[PlyCount "51"]
[EventDate "2019.07.07"]
[EventType "swiss"]
[EventCountry "FRA"]
[SourceTitle "playchess.com"]
[Source "ChessBase"]
[SourceQuality "1"]
[TimeControl "5400+30"]

1. Nf3 d6 2. d4 g6 3. c4 f5 4. g3 Nf6 5. Bg2 Bg7 6. O-O O-O 7. Nc3 Nc6 8. d5 Na5 9. Nd2 c5 10. Qc2 a6 11. Rb1 Rb8 12. b3 Qc7 13. Bb2 b5 14. Ba1 b4 15. Nd1 e5 16. dxe6 Bxe6 17. Ne3 Rbe8 18. Qd3 Kh8 19. Rfe1 Nc6 20. Rbd1 f4 21. gxf4 Nh5 22. Bxg7+ Kxg7 23. Nf3 Rd8 24. Ng5 Nxf4 25. Qe4 Ne5 26. Qxf4 1-0

[Event "94th Paris-ch  2019"]
[Site "Paris"]
[Date "2019.07.07"]
[Round "2.5"]
[White "Chalmeta Ugas, Ramon"]
[Black "Bharath Subramaniyam H"]
[Result "1-0"]
[ECO "B40"]
[WhiteElo "2232"]
[BlackElo "2405"]
[Annotator "NA"]
[PlyCount "55"]
[EventDate "2019.07.07"]
[EventType "swiss"]
[EventCountry "FRA"]
[SourceTitle "playchess.com"]
[Source "ChessBase"]
[SourceQuality "1"]
[TimeControl "5400+30"]

1. e4 {[%emt 0:00:00]} c5 {[%emt 0:00:00]} 2. Nf3 {[%emt 0:00:00]} e6 {[%emt 0:00:05]} 3. Nc3 {[%emt 0:00:00]} a6 {[%emt 0:00:17]} 4. g3 {[%emt 0:00:03]} b5 {[%emt 0:01:31]} 5. Bg2 {[%emt 0:00:15]} Bb7 {[%emt 0:00:07]} 6. d3 {[%emt 0:00:09]} d6 {[%emt 0:00:31]} 7. O-O {[%emt 0:00:11]} Nf6 {[%emt 0:00:18]} 8. Ng5 {[%emt 0:00:16]} h6 {[%emt 0:01:50]} 9. Nh3 {[%emt 0:00:06]} Nc6 {[%emt 0:00:37]} 10. f4 {[%emt 0:00:09]} Qc7 {[%emt 0:00:12]} 11. f5 {[%emt 0:02:46]} b4 {[%emt 0:11:37]} 12. Ne2 {[%emt 0:01:21]} exf5 {[%emt 0:00:49]} 13. Rxf5 {[%emt 0:01:14]} Be7 {[%emt 0:00:28]} 14. Rf1 {[%emt 0:02:07]} O-O {[%emt 0:00:49]} 15. Nef4 {[%emt 0:01:01]} Rad8 {[%emt 0:05:03]} 16. Nh5 {[%emt 0:03:53]} Nxh5 {[%emt 0:07:47]} 17. Qxh5 {[%emt 0:00:33]} Nd4 {[%emt 0:12:08]} 18. Bxh6 {[%emt 0:17:26]} gxh6 {[%emt 0:02:39]} 19. Qxh6 {[%emt 0:02:29]} Ne6 {[%emt 0:01:26]} 20. Rf5 {[%emt 0:01:38]} Ng7 {[%emt 0:00:22]} 21. Rg5 {[%emt 0:12:38]} Bxg5 {[%emt 0:03:14]} 22. Nxg5 {[%emt 0:00:06]} Rfe8 {[%emt 0:00:42]} 23. Rf1 {[%emt 0:04:12]} Rd7 {[%emt 0:07:06]} 24. Bh3 {[%emt 0:07:46]} f5 {[%emt 0:04:40]} 25. Qh7+ {[%emt 0:02:17]} Kf8 {[%emt 0:02:03]} 26. Bxf5 {[%emt 0:02:24]} Rf7 {[%emt 0:00:52]} 27. Nxf7 {[%emt 0:00:41]} Qxf7 {[%emt 0:01:02]} 28. Bg6 {[%emt 0:01:06]} 1-0

[Event "94th Paris-ch  2019"]
[Site "Paris"]
[Date "2019.07.07"]
[Round "2.6"]
[White "Moksh Amit Doshi"]
[Black "Verstraeten, Rein"]
[Result "1/2-1/2"]
[ECO "D37"]
[WhiteElo "2229"]
[BlackElo "2376"]
[Annotator "NA"]
[PlyCount "28"]
[EventDate "2019.07.07"]
[EventType "swiss"]
[EventCountry "FRA"]
[SourceTitle "playchess.com"]
[Source "ChessBase"]
[SourceQuality "1"]
[TimeControl "5400+30"]

1. d4 {[%emt 0:00:36]} Nf6 {[%emt 0:00:00]} 2. c4 {[%emt 0:00:07]} e6 {[%emt 0:00:06]} 3. Nf3 {[%emt 0:00:41]} d5 {[%emt 0:00:07]} 4. Nc3 {[%emt 0:01:13]} a6 {[%emt 0:00:36]} 5. cxd5 {[%emt 0:00:23]} exd5 {[%emt 0:00:07]} 6. Bg5 {[%emt 0:00:06]} Be6 {[%emt 0:00:21]} 7. e3 {[%emt 0:00:12]} Bd6 {[%emt 0:00:21]} 8. Qb3 {[%emt 0:05:11]} Nbd7 {[%emt 0:06:54]} 9. Qxb7 {[%emt 0:05:14]} O-O {[%emt 0:14:23]} 10. Qb3 {[%emt 0:02:06]} c5 {[%emt 0:00:23]} 11. Be2 {[%emt 0:00:36]} Qa5 {[%emt 0:04:39]} 12. O-O {[%emt 0:01:09]} Ne4 {[%emt 0:04:37]} 13. Qc2 {[%emt 0:03:31]} Rab8 {[%emt 0:15:59]} 14. Bh4 {[%emt 0:04:43]} cxd4 {[%emt 0:04:47]} 1/2-1/2

[Event "94th Paris-ch  2019"]
[Site "Paris"]
[Date "2019.07.07"]
[Round "2.7"]
[White "Gervasio, Ricardo"]
[Black "Philippe, Guillaume"]
[Result "0-1"]
[ECO "A47"]
[WhiteElo "2223"]
[BlackElo "2344"]
[Annotator "NA"]
[PlyCount "86"]
[EventDate "2019.07.07"]
[EventType "swiss"]
[EventCountry "FRA"]
[SourceTitle "playchess.com"]
[Source "ChessBase"]
[SourceQuality "1"]
[TimeControl "5400+30"]

1. Nf3 {[%emt 0:00:06]} Nf6 {[%emt 0:00:15]} 2. d4 {[%emt 0:00:29]} e6 {[%emt 0:00:29]} 3. e3 {[%emt 0:01:58]} b6 {[%emt 0:00:35]} 4. Bd3 {[%emt 0:00:17]} Bb7 {[%emt 0:00:07]} 5. Nbd2 {[%emt 0:00:23]} c5 {[%emt 0:02:42]} 6. Qe2 {[%emt 0:03:21]} Nc6 {[%emt 0:03:13]} 7. a3 {[%emt 0:03:02]} Be7 {[%emt 0:04:21]} 8. c4 {[%emt 0:05:16]} cxd4 {[%emt 0:00:57]} 9. exd4 {[%emt 0:00:37]} d5 {[%emt 0:00:07]} 10. b4 {[%emt 0:02:57]} dxc4 {[%emt 0:00:37]} 11. Nxc4 {[%emt 0:00:02]} Nxd4 {[%emt 0:05:28]} 12. Nxd4 {[%emt 0:00:18]} Qxd4 {[%emt 0:00:14]} 13. Bb2 {[%emt 0:00:11]} Qh4 {[%emt 0:00:47]} 14. Be5 {[%emt 0:06:15]} O-O {[%emt 0:05:24]} 15. O-O {[%emt 0:02:52]} Rad8 {[%emt 0:03:24]} 16. Rfd1 {[%emt 0:01:51]} h5 {[%emt 0:07:23]} 17. Bg3 {[%emt 0:03:44]} Qg5 {[%emt 0:00:43]} 18. f4 {[%emt 0:08:43]} Qh6 {[%emt 0:06:54]} 19. h3 {[%emt 0:02:15]} h4 {[%emt 0:09:48]} 20. Bh2 {[%emt 0:00:07]} Nd5 {[%emt 0:01:23]} 21. Rf1 {[%emt 0:04:01]} Bf6 {[%emt 0:00:55]} 22. Rac1 {[%emt 0:03:59]} Nc3 {[%emt 0:03:05]} 23. Qc2 {[%emt 0:00:59]} Rd7 {[%emt 0:02:16]} 24. Rfe1 {[%emt 0:06:30]} Rfd8 {[%emt 0:01:19]} 25. Bf1 {[%emt 0:00:01]} Bd4+ {[%emt 0:03:34]} 26. Kh1 {[%emt 0:00:36]} f5 {[%emt 0:00:16]} 27. Ne5 {[%emt 0:01:34]} Bxe5 {[%emt 0:00:17]} 28. Rxe5 {[%emt 0:00:07]} Ne4 {[%emt 0:00:36]} 29. Bc4 {[%emt 0:01:00]} Bd5 {[%emt 0:03:18]} 30. Re1 {[%emt 0:07:16]} Kh7 {[%emt 0:06:38]} 31. Bxd5 {[%emt 0:00:35]} Rxd5 {[%emt 0:00:27]} 32. R1xe4 {[%emt 0:00:31]} fxe4 33. Qxe4+ Qg6 {[%emt 0:03:14]} 34. f5 {[%emt 0:10:38]} exf5 {[%emt 0:00:13]} 35. Qxh4+ {[%emt 0:00:38]} Qh6 {[%emt 0:01:19]} 36. Qe7 {[%emt 0:00:26]} R8d7 {[%emt 0:04:37]} 37. Qe8 {[%emt 0:00:19]} Qg6 {[%emt 0:00:53]} 38. Qf8 {[%emt 0:05:07]} Rxe5 {[%emt 0:01:56]} 39. Bxe5 {[%emt 0:00:01]} Rd2 {[%emt 0:02:05]} 40. Qa8 {[%emt 0:00:05]} Qe6 {[%emt 0:01:49]} 41. Bf4 {[%emt 0:00:51]} Qd5 {[%emt 0:00:58]} 42. Qxd5 {[%emt 0:00:09]} Rxd5 {[%emt 0:00:05]} 43. Bb8 {[%emt 0:00:13]} a6 {[%emt 0:00:11]} 0-1

[Event "94th Paris-ch  2019"]
[Site "Paris"]
[Date "2019.07.07"]
[Round "2.8"]
[White "Bonte, Andrei-Mihai"]
[Black "Samoun, Florent"]
[Result "0-1"]
[ECO "D94"]
[WhiteElo "2337"]
[BlackElo "2230"]
[Annotator "NA"]
[PlyCount "93"]
[EventDate "2019.07.07"]
[EventType "swiss"]
[EventCountry "FRA"]
[SourceTitle "playchess.com"]
[Source "ChessBase"]
[SourceQuality "1"]
[TimeControl "5400+30"]

1. d4 {[%emt 0:00:30]} d5 {[%emt 0:00:23]} 2. Nf3 {[%emt 0:00:13]} Nf6 {[%emt 0:00:15]} 3. c4 {[%emt 0:00:28]} e6 {[%emt 0:00:33]} 4. Nc3 {[%emt 0:00:31]} c6 {[%emt 0:00:36]} 5. e3 {[%emt 0:00:46]} g6 {[%emt 0:05:14]} 6. Bd3 {[%emt 0:03:04]} Bg7 {[%emt 0:00:13]} 7. O-O {[%emt 0:00:08]} O-O {[%emt 0:00:07]} 8. e4 {[%emt 0:06:59]} dxe4 {[%emt 0:01:18]} 9. Nxe4 {[%emt 0:00:08]} Nxe4 {[%emt 0:00:29]} 10. Bxe4 {[%emt 0:00:02]} Nd7 {[%emt 0:00:27]} 11. Qc2 {[%emt 0:16:09]} e5 {[%emt 0:05:22]} 12. Bg5 {[%emt 0:07:08]} Qc7 {[%emt 0:04:13]} 13. c5 {[%emt 0:11:59]} f5 {[%emt 0:13:48]} 14. Qc4+ {[%emt 0:02:51]} Kh8 {[%emt 0:01:06]} 15. Bc2 {[%emt 0:00:04]} e4 {[%emt 0:01:01]} 16. Nd2 {[%emt 0:00:13]} h6 {[%emt 0:07:36]} 17. Be7 {[%emt 0:11:53]} Nb6 {[%emt 0:06:51]} 18. cxb6 {[%emt 0:00:10]} Qxe7 {[%emt 0:00:06]} 19. bxa7 {[%emt 0:02:48]} Be6 {[%emt 0:01:13]} 20. Qc3 {[%emt 0:00:28]} Rfd8 {[%emt 0:01:54]} 21. Nb3 {[%emt 0:00:09]} Rxa7 {[%emt 0:04:21]} 22. Rfd1 {[%emt 0:00:34]} Bd5 {[%emt 0:04:57]} 23. Na5 {[%emt 0:08:27]} c5 {[%emt 0:12:41]} 24. Nc4 {[%emt 0:02:33]} Kh7 {[%emt 0:11:26]} 25. Nb6 {[%emt 0:01:32]} cxd4 {[%emt 0:04:01]} 26. Nxd5 {[%emt 0:00:11]} Rxd5 {[%emt 0:00:27]} 27. Qd2 {[%emt 0:02:00]} Ra8 {[%emt 0:01:21]} 28. b4 {[%emt 0:00:23]} Rb5 {[%emt 0:02:29]} 29. Bb3 {[%emt 0:00:50]} Rxb4 {[%emt 0:01:09]} 30. Rac1 {[%emt 0:00:05]} Rb6 {[%emt 0:00:40]} 31. Rc4 {[%emt 0:00:55]} Rc6 {[%emt 0:00:39]} 32. Rdc1 {[%emt 0:00:31]} Rac8 {[%emt 0:00:26]} 33. g3 {[%emt 0:00:24]} Rxc4 {[%emt 0:01:31]} 34. Rxc4 Rxc4 35. Bxc4 Qc5 {[%emt 0:01:05]} 36. Qc2 {[%emt 0:00:09]} b6 {[%emt 0:00:30]} 37. Kf1 {[%emt 0:00:36]} d3 {[%emt 0:01:09]} 38. Qa4 {[%emt 0:00:10]} Qd4 {[%emt 0:01:16]} 39. Bb3 {[%emt 0:00:09]} Qxa4 {[%emt 0:01:38]} 40. Bxa4 {[%emt 0:00:01]} Bc3 {[%emt 0:00:17]} 41. Bb5 {[%emt 0:08:29]} Kg7 {[%emt 0:00:10]} 42. f3 {[%emt 0:00:58]} Kf6 {[%emt 0:00:16]} 43. fxe4 {[%emt 0:00:38]} fxe4 {[%emt 0:00:05]} 44. Kf2 {[%emt 0:00:24]} Ke5 {[%emt 0:00:18]} 45. Ke3 {[%emt 0:00:05]} Bd4+ {[%emt 0:00:16]} 46. Kd2 {[%emt 0:00:06]} Bg1 {[%emt 0:00:12]} 47. Ke1 {[%emt 0:01:35]} 0-1

[Event "94th Paris-ch  2019"]
[Site "Paris"]
[Date "2019.07.07"]
[Round "2.9"]
[White "Vardaan Nagpal"]
[Black "Guliyev, Namig"]
[Result "0-1"]
[ECO "D02"]
[WhiteElo "2355"]
[BlackElo "2551"]
[Annotator "ChessBase"]
[PlyCount "72"]
[EventDate "2019.07.07"]
[EventType "swiss"]
[EventCountry "FRA"]
[SourceTitle "playchess.com"]
[Source "ChessBase"]
[SourceQuality "1"]
[TimeControl "5400+30"]

1. Nf3 {[%emt 0:57:17]} d5 {[%emt 0:00:09]} 2. g3 {[%emt 0:00:30]} Bg4 {[%emt 0:00:21]} 3. Bg2 {[%emt 0:00:02]} Nd7 {[%emt 0:00:07]} 4. d4 {[%emt 0:00:05]} e6 {[%emt 0:00:20]} 5. O-O {[%emt 0:00:07]} Ngf6 {[%emt 0:00:20]} 6. h3 {[%emt 0:00:06]} Bh5 {[%emt 0:00:20]} 7. c4 {[%emt 0:00:10]} c6 {[%emt 0:00:16]} 8. cxd5 {[%emt 0:00:12]} exd5 {[%emt 0:00:11]} 9. Nh4 {[%emt 0:00:09]} Bg6 {[%emt 0:02:32]} 10. Nc3 {[%emt 0:00:06]} Bb4 {[%emt 0:00:38]} 11. Nxg6 {[%emt 0:04:28]} hxg6 {[%emt 0:00:09]} 12. Qd3 {[%emt 0:00:13]} O-O {[%emt 0:00:09]} 13. h4 {[%emt 0:00:58]} Re8 {[%emt 0:00:18]} 14. Bf3 {[%emt 0:00:23]} Qe7 {[%emt 0:01:22]} 15. Kg2 {[%emt 0:01:13]} Ne4 {[%emt 0:06:46]} 16. Rh1 {[%emt 0:01:20]} Ndf6 {[%emt 0:00:41]} 17. Bf4 {[%emt 0:19:14]} Rad8 {[%emt 0:05:55]} 18. a3 {[%emt 0:05:11]} Bd6 {[%emt 0:02:29]} 19. Bxd6 {[%emt 0:01:24]} Qxd6 {[%emt 0:03:51]} 20. Rad1 {[%emt 0:11:07]} a5 {[%emt 0:04:31]} 21. Qc2 {[%emt 0:00:35]} b5 {[%emt 0:10:11]} 22. Rd3 {[%emt 0:03:07]} Qb8 {[%emt 0:02:56]} 23. Re3 {[%emt 0:06:56]} Qa7 {[%emt 0:20:17]} 24. Rd1 {[%emt 0:00:33]} Nd6 {[%emt 0:00:13]} 25. Rxe8+ {[%emt 0:03:21]} Rxe8 {[%emt 0:00:29]} 26. Nb1 {[%emt 0:03:19]} Nf5 {[%emt 0:03:31]} 27. Qd3 {[%emt 0:05:47]} Ne4 {[%emt 0:03:25]} 28. Nd2 {[%emt 0:07:15]} Nexg3 {[%emt 0:00:58]} 29. Rc1 {[%emt 0:02:35]} Qc7 {[%emt 0:16:01]} 30. fxg3 {[%emt 0:00:39]} Qxg3+ {[%emt 0:00:06]} 31. Kh1 {[%emt 0:00:03]} Qxh4+ {[%emt 0:00:16]} 32. Kg1 {[%emt 0:00:14]} Re3 {[%emt 0:03:32]} 33. Qc2 {[%emt 0:00:32]} Qg3+ {[%emt 0:00:53]} 34. Kh1 {[%emt 0:00:11]} Rxf3 {[%emt 0:00:45]} 35. exf3 {[%emt 0:00:21]} Ne3 {[%emt 0:00:08]} 36. Nf1 {[%emt 0:02:00]} Qxf3+ {[%emt 0:00:13]} 0-1